bitfinex-derivatives/quotes_ETHF0:USTF0_20250316
["timestamp","ask_amount","ask_price","bid_price","bid_amount"]
[1742132353496,2.3829,1891.2,1891.1,3.89830402]
[1742132353990,2.3829,1891.2,1891.1,4.26536]
[1742132354191,2.3829,1891.2,1891.1,5.59076]
[1742132354688,2.3829,1891.2,1891.1,5.90782901]
[1742132355092,2.3829,1891.2,1891.1,5.59076]
[1742132355792,2.3829,1891.2,1891.1,6.28103362]
[1742132356594,2.3829,1891.2,1891.1,6.59808787]
[1742132357087,2.3829,1891.2,1891.1,6.28103362]
[1742132357297,2.3829,1891.2,1891.1,6.59811487]
[1742132358089,6.88341,1891.4,1891.3,1.05745]
[1742132358795,6.88341,1891.4,1891.3,1.74772362]
[1742132359182,6.88341,1891.4,1891.3,2.06479814]
[1742132359383,8.34021,1891.4,1891.3,2.06479814]
[1742132360195,8.34021,1891.4,1891.3,1.74772362]
[1742132360392,8.34021,1891.4,1891.3,0.69027362]
[1742132360892,1.0575,1891.2,1891.1,3.2078]
[1742132361288,1.0575,1891.2,1891.1,3.89827611]
[1742132361483,3.2138,1891.2,1891.1,3.89827611]
[1742132361993,3.2138,1891.2,1891.1,3.2078]
[1742132363896,3.2138,1891.2,1891.1,5.61336]
[1742132364289,3.2138,1891.2,1891.1,4.5558]
[1742132364496,1.4568,1891.2,1891.1,5.61336]
[1742132364691,1.4568,1891.2,1891.1,6.30398322]
[1742132364898,1.4568,1891.2,1891.1,6.61521024]
[1742132365093,2.5143,1891.2,1891.1,6.61521024]
[1742132365394,1.4568,1891.2,1891.1,6.61532797]
[1742132365598,1.4568,1891.2,1891.1,6.61537092]
[1742132366692,2.5143,1891.2,1891.1,6.61537092]
[1742132367402,1.4568,1891.2,1891.1,6.61537092]
[1742132368394,2.5143,1891.2,1891.1,6.61537092]
[1742132368694,2.5143,1891.2,1891.1,7.72157849]
[1742132369392,2.5143,1891.2,1891.1,7.72185123]
[1742132370595,2.5143,1891.2,1891.1,5.31629123]
[1742132371101,2.5143,1891.2,1891.1,3.89842322]
[1742132372203,2.5143,1891.2,1891.1,6.29918322]
[1742132372605,2.5143,1891.2,1891.1,6.61095856]
[1742132373492,2.5143,1891.2,1891.1,0.69062322]
[1742132373692,2.5143,1891.2,1890.9,0.00794428]
[1742132373693,1.05762,1891.0,1890.9,0.00794428]
[1742132373904,1.05762,1891.0,1890.9,0.31992969]
[1742132374107,1.05762,1891.0,1890.9,0.31994002]
[1742132374403,2.43482,1891.0,1890.9,0.00794428]
[1742132376100,1.05778,1890.7,1890.6,3.2078]
[1742132376304,4.02145,1890.9,1890.6,1.05782]
[1742132376500,2.0824,1890.8,1890.5,2.44406]
[1742132376695,2.43503,1890.7,1890.6,4.594]
[1742132377699,3.16283,1890.7,1890.6,1.3862]
[1742132380110,2.43498,1890.7,1890.6,5.65184]
[1742132380311,2.43498,1890.7,1890.6,4.594]
[1742132381906,2.43498,1890.7,1890.6,5.65184]
[1742132382600,2.43498,1890.7,1890.6,4.594]
[1742132382803,2.43498,1890.7,1890.6,4.26564]
[1742132382998,2.43498,1890.7,1890.6,5.67804]
[1742132383600,2.43498,1890.7,1890.6,4.6202]
[1742132383808,2.43498,1890.7,1890.6,3.2078]
[1742132384603,2.43498,1890.7,1890.6,4.6202]
[1742132385003,2.43498,1890.7,1890.6,3.2078]
[1742132385309,1.05784,1890.6,1890.5,2.47823428]
[1742132385506,2.51744,1890.6,1890.5,2.47823428]
[1742132386306,2.51744,1890.6,1890.5,1.42034428]
[1742132387614,2.51744,1890.6,1890.5,2.47824428]
[1742132388416,1.4596,1890.6,1890.5,2.47824428]
[1742132388810,2.51744,1890.6,1890.5,2.47824428]
[1742132391409,2.51744,1890.6,1890.5,0.00794428]
[1742132391610,2.51744,1890.6,1890.5,1.06584428]
[1742132392022,2.51744,1890.6,1890.5,1.40424428]
[1742132393525,2.51744,1890.6,1890.5,2.46214428]
[1742132393711,2.51744,1890.6,1890.5,1.40424428]
[1742132394418,2.51744,1890.6,1890.5,2.46214428]
[1742132394813,2.51744,1890.6,1890.5,1.40424428]
[1742132395213,2.51744,1890.6,1890.5,2.46214428]
[1742132395520,2.51744,1890.6,1890.5,1.40424428]
[1742132398018,2.51744,1890.6,1890.5,2.46214428]
[1742132398222,2.51744,1890.6,1890.5,1.40424428]
[1742132398924,2.51744,1890.6,1890.5,2.46214428]
[1742132400024,1.4596,1890.6,1890.5,2.46214428]
[1742132400225,2.51744,1890.6,1890.5,2.46214428]
[1742132402623,2.51744,1890.6,1890.5,0.00794428]
[1742132402829,1.0579,1890.5,1890.4,3.2078]
[1742132403027,3.8098,1890.5,1890.4,3.2078]
[1742132404320,1.05795,1890.4,1890.3,0.00529622]
[1742132404519,2.50065,1890.4,1890.3,0.00529622]
[1742132406823,2.50065,1890.4,1890.3,1.37289622]
[1742132407026,2.50065,1890.4,1890.3,0.00529622]
[1742132407224,2.50065,1890.4,1890.3,0.6801528]
[1742132407530,2.50065,1890.4,1890.3,1.44559622]
[1742132407729,2.50065,1890.4,1890.3,0.00529622]
[1742132412531,1.05817,1890.0,1889.9,1.3567]
[1742132412838,1.05817,1890.0,1889.9,2.41493]
[1742132413138,1.05817,1890.0,1889.9,1.3567]
[1742132413331,1.05817,1890.0,1889.9,3.13907325]
[1742132413529,2.39147,1890.0,1889.9,3.13907325]
[1742132413722,2.39147,1890.0,1889.9,2.04222817]
[1742132413933,2.39147,1890.0,1889.9,0.68552817]
[1742132414231,1.05834,1889.7,1889.6,4.5694]
[1742132414436,1.05834,1889.7,1889.6,3.2078]
[1742132415141,3.05454,1889.7,1889.6,3.2078]
[1742132415826,1.0584,1889.6,1889.5,3.12554]
[1742132416028,2.3917,1889.6,1889.5,6.33334]
[1742132416443,2.3917,1889.6,1889.5,5.2749]
[1742132419346,2.3917,1889.6,1889.5,3.2078]
[1742132420041,2.3917,1889.6,1889.3,1.3893]
[1742132420042,1.05851,1889.4,1889.3,1.3893]
[1742132420744,2.40191,1889.4,1889.3,1.3893]
[1742132421944,1.05857,1889.3,1889.2,3.2078]
[1742132422142,1.05868,1889.1,1889.0,2.47491084]
[1742132422343,1.3434,1889.3,1889.2,1.05862]
[1742132422344,2.40199,1889.3,1889.2,1.05862]
[1742132422645,2.40199,1889.3,1889.0,1.08561084]
[1742132422646,1.05862,1889.2,1889.1,3.9198]
[1742132422845,2.42082,1889.2,1889.1,4.97848]
[1742132423354,2.42082,1889.2,1889.1,3.2078]
[1742132425141,1.3622,1889.2,1889.1,3.2078]
[1742132425543,2.42082,1889.2,1889.1,3.2078]
[1742132425946,2.42082,1889.2,1889.1,4.26648]
[1742132426342,2.42082,1889.2,1889.1,3.2078]
[1742132430447,1.05879,1888.9,1888.8,4.5843]
[1742132431248,1.05879,1888.9,1888.8,3.8723]
[1742132432150,1.05879,1888.9,1888.8,3.2078]
[1742132432666,1.05896,1888.6,1888.5,3.2078]
[1742132433650,2.48676,1888.6,1888.5,3.2078]
[1742132451661,9.40594428,1888.7,1888.6,1.05896]
[1742132451662,6.89288428,1888.7,1888.6,1.05896]
[1742132451852,6.89288428,1888.7,1888.6,2.786]
[1742132451853,8.35488428,1888.7,1888.6,2.786]
[1742132452762,8.35488428,1888.7,1888.6,3.84496]
[1742132453263,2.52888428,1888.7,1888.6,3.84496]
[1742132453658,0.00794428,1888.7,1888.6,4.15724047]
[1742132453867,0.00794428,1888.7,1888.6,7.72924047]
[1742132454664,3.2078,1889.2,1889.1,1.05868]
[1742132454963,1.05865,1889.2,1889.1,4.26648]
[1742132455368,2.4547,1889.3,1889.2,1.05862]
[1742132455757,2.4547,1889.3,1889.2,2.51632]
[1742132457661,2.4547,1889.3,1889.2,1.4577]
[1742132460559,2.4547,1889.3,1889.2,2.51632]
[1742132461062,0.00794428,1889.4,1889.3,1.05857]
[1742132461266,1.06645428,1889.4,1889.3,4.26637]
[1742132462071,1.06645428,1889.4,1889.3,4.55]
[1742132462272,1.06645428,1889.4,1889.1,1.75822428]
[1742132462273,1.05862,1889.2,1889.1,1.75822428]
[1742132462565,1.05862,1889.2,1889.1,3.10042428]
[1742132462873,2.42561,1889.3,1889.2,1.05862]
[1742132463072,2.42561,1889.3,1889.2,5.60862]
[1742132463373,1.367,1889.3,1889.2,5.60862]
[1742132463573,1.06649428,1889.4,1889.3,1.05857]
[1742132463874,2.43349428,1889.4,1889.3,2.40077]
[1742132464070,2.43349428,1889.4,1889.3,1.3422]
[1742132464372,2.43349428,1889.4,1889.3,2.40077]
[1742132464774,2.43349428,1889.4,1889.3,1.3422]
[1742132468574,1.05857,1889.3,1889.2,1.4198]
[1742132468768,3.22147,1889.3,1889.2,1.4198]
[1742132469269,1.05862,1889.2,1889.1,0.00794428]
[1742132469475,2.51672,1889.2,1889.1,2.48642428]
[1742132470174,2.51672,1889.2,1889.1,1.42774428]
[1742132470568,2.51672,1889.2,1889.1,2.48642428]
[1742132470875,2.51672,1889.2,1889.1,1.42774428]
[1742132471372,2.51672,1889.2,1889.1,2.48642428]
[1742132471569,2.51672,1889.2,1889.1,1.42774428]
[1742132472968,2.51672,1889.2,1889.1,0.00794428]
[1742132473270,1.05879,1888.9,1888.8,3.2078]
[1742132473474,2.6468,1889.1,1888.7,1.3454]
[1742132473475,1.05885,1888.8,1888.7,1.3454]
[1742132473668,1.0589,1888.7,1888.6,0.6718]
[1742132473875,1.05902,1888.5,1888.4,4.5532]
[1742132474375,1.05902,1888.5,1888.4,3.2078]
[1742132474574,2.46742,1888.5,1888.4,3.2078]
[1742132476682,2.46742,1888.5,1888.4,4.5616]
[1742132478078,2.46742,1888.5,1888.4,5.62067]
[1742132478279,2.46742,1888.5,1888.4,3.2078]
[1742132479177,2.46742,1888.5,1888.2,1.9881]
[1742132479178,1.05918,1888.3,1888.1,3.2078]
[1742132479365,1.05918,1888.3,1888.2,1.74466]
[1742132479680,2.45046428,1888.4,1888.3,1.05913]
[1742132480678,2.45046428,1888.4,1888.3,2.48223]
[1742132481173,1.39134428,1888.4,1888.3,2.48223]
[1742132481369,2.45041428,1888.4,1888.3,2.48223]
[1742132481780,1.39134428,1888.4,1888.3,2.48223]
[1742132481980,2.45041428,1888.4,1888.3,2.48223]
[1742132482282,1.05898,1888.6,1888.5,1.05894]
[1742132482471,1.4171,1888.6,1888.5,1.05894]
[1742132482777,2.47606,1888.6,1888.5,1.05894]
[1742132482970,2.47606,1888.6,1888.5,2.48204]
[1742132483172,1.4171,1888.6,1888.5,2.48204]
[1742132483577,0.00794428,1888.7,1888.6,1.05896]
[1742132483784,1.40394428,1888.7,1888.6,1.75116]
[1742132484282,2.46284428,1888.7,1888.6,1.75116]
[1742132484582,2.46284428,1888.7,1888.6,3.06756]
[1742132488083,1.40394428,1888.7,1888.6,3.06756]
[1742132488782,0.00794428,1888.7,1888.6,3.06756]
[1742132489371,1.06684428,1888.7,1888.6,2.0086]
[1742132490181,1.06684428,1888.7,1888.6,3.06756]
[1742132490583,0.00794428,1888.7,1888.6,3.06756]
[1742132491184,3.8678,1889.0,1888.9,1.05879]
[1742132491185,4.6165,1889.0,1888.9,1.05879]
[1742132491378,3.2078,1889.0,1888.9,1.05879]
[1742132491686,2.46739,1889.1,1889.0,1.05874]
[1742132492381,2.46739,1889.1,1889.0,1.71894]
[1742132493279,0.00794428,1889.2,1889.1,1.05868]
[1742132493583,1.42904428,1889.2,1889.1,2.42068]
[1742132494585,2.48767428,1889.2,1889.1,2.42068]
[1742132495285,1.42904428,1889.2,1889.1,2.42068]
[1742132495480,2.48766428,1889.2,1889.1,2.42068]
[1742132497588,1.42904428,1889.2,1889.1,2.42068]
[1742132498083,1.42904428,1889.2,1889.1,5.94036649]
[1742132498490,1.42904428,1889.2,1889.1,6.62002545]
[1742132499380,1.42904428,1889.2,1889.1,6.30813896]
[1742132500087,1.42904428,1889.2,1889.1,9.87513896]
[1742132500989,1.42904428,1889.2,1889.1,9.19548]
[1742132502085,1.42904428,1889.2,1889.1,5.98768]
[1742132508292,1.42904428,1889.2,1889.1,6.66790678]
[1742132508689,1.42904428,1889.2,1889.1,0.68022678]
[1742132508690,2.48766428,1889.2,1889.1,0.68022678]
[1742132508991,2.48766428,1889.2,1888.8,4.6121]
[1742132508992,4.07561428,1889.2,1888.8,4.6121]
[1742132509194,4.67131,1889.1,1888.5,3.9377]
[1742132509389,7.91229,1889.0,1888.6,6.34182496]
[1742132509588,1.0589,1888.7,1888.6,3.566]
[1742132509790,1.0589,1888.7,1888.6,4.62496]
[1742132510690,1.7436,1888.7,1888.6,4.62496]
[1742132510890,0.6847,1888.7,1888.6,4.62496]
[1742132511094,0.6847,1888.7,1888.6,6.39361011]
[1742132511293,2.1167,1888.7,1888.6,6.39361011]
[1742132511496,2.1167,1888.7,1888.6,6.39373509]
[1742132511892,2.1167,1888.7,1888.6,8.22386839]
[1742132512395,3.1756,1888.7,1888.6,8.22386839]
[1742132512698,3.1756,1888.7,1888.6,6.4550933]
[1742132513900,3.1756,1888.7,1888.6,5.32885742]
[1742132514096,3.1756,1888.7,1888.6,0.70389742]
[1742132514605,3.1756,1888.7,1888.6,1.76285742]
[1742132515299,2.1167,1888.7,1888.6,2.0760235]
[1742132515500,2.1167,1888.7,1888.6,3.48399912]
[1742132515990,2.1167,1888.7,1888.6,4.61090395]
[1742132517000,1.432,1888.7,1888.6,4.61090395]
[1742132517599,1.432,1888.7,1888.6,4.610895]
[1742132518101,1.432,1888.7,1888.6,8.176895]
[1742132519596,1.432,1888.7,1888.6,8.1769034]
[1742132520196,6.5437,1889.0,1888.9,1.05879]
[1742132520401,5.826,1889.0,1888.9,1.05879]
[1742132520588,0.7028,1889.1,1889.0,1.05874]
[1742132520589,1.4105,1889.1,1889.0,1.05874]
[1742132520789,0.00794428,1889.2,1889.1,1.05868]
[1742132520994,0.00794428,1889.2,1889.1,1.72778]
[1742132521302,0.00794428,1889.2,1889.1,2.04075092]
[1742132521499,0.00794428,1889.2,1889.1,3.41645092]
[1742132521702,0.00794428,1889.2,1889.1,5.24662953]
[1742132522000,0.00794428,1889.2,1889.1,4.93365861]
[1742132522196,1.06656428,1889.2,1889.1,3.80737742]
[1742132522395,1.06656428,1889.2,1889.1,4.12026497]
[1742132522601,1.06656428,1889.2,1889.1,4.12027038]
[1742132522795,1.06656428,1889.2,1889.1,0.70389742]
[1742132523507,1.05874,1889.0,1888.9,3.566]
[1742132523693,1.05874,1889.0,1888.8,1.0588]
[1742132523899,2.38229,1888.9,1888.8,1.0588]
[1742132524100,1.3235,1888.9,1888.8,1.37185393]
[1742132524605,1.3235,1888.9,1888.8,2.81025393]
[1742132524806,1.3235,1888.9,1888.8,3.92852757]
[1742132525007,1.3235,1888.9,1888.8,3.92849639]
[1742132525400,1.3235,1888.9,1888.8,2.81019969]
[1742132525694,1.3235,1888.9,1888.8,3.9283336]
[1742132526206,2.38229,1888.9,1888.8,2.4899336]
[1742132526402,2.38229,1888.9,1888.8,1.11813391]
[1742132526808,3.07459,1888.9,1888.8,1.11813391]
[1742132527103,2.0158,1888.9,1888.8,2.17698391]
[1742132527299,3.07459,1888.9,1888.8,3.55368391]
[1742132527495,3.07459,1888.9,1888.8,1.11813391]
[1742132527699,3.07459,1888.9,1888.8,1.43121786]
[1742132527908,3.07459,1888.9,1888.8,1.11813391]
[1742132528308,6.28239,1888.9,1888.8,1.11813391]
[1742132528509,3.07459,1888.9,1888.8,1.11813391]
[1742132528809,6.28239,1888.9,1888.8,1.11813391]
[1742132529605,1.0589,1888.7,1888.6,1.05896]
[1742132530206,1.05896,1888.6,1888.5,1.05898]
[1742132530396,2.707,1888.6,1888.5,1.37215758]
[1742132530600,2.707,1888.6,1888.5,2.69515758]
[1742132530802,3.76596,1888.6,1888.5,2.69515758]
[1742132531002,3.76596,1888.6,1888.5,3.81398796]
[1742132531406,2.707,1888.6,1888.5,3.81399246]
[1742132533406,1.3438,1888.6,1888.5,3.81408923]
[1742132533804,2.40276,1888.6,1888.5,3.81408923]
[1742132534910,2.40276,1888.6,1888.5,1.43210923]
[1742132535411,2.40276,1888.6,1888.5,1.11883038]
[1742132536011,3.08076,1888.6,1888.5,1.11883038]
[1742132536210,1.05902,1888.5,1888.4,1.43554428]
[1742132536511,3.08712,1888.5,1888.4,1.74908655]
[1742132536912,3.08712,1888.5,1888.4,2.44924325]
[1742132537905,3.08712,1888.5,1888.4,3.50831325]
[1742132538716,3.08712,1888.5,1888.4,2.44924325]
[1742132538910,3.08712,1888.5,1888.4,4.62869086]
[1742132539614,3.08712,1888.5,1888.4,4.62878025]
[1742132539806,3.08712,1888.5,1888.4,3.20118025]
[1742132541114,3.08712,1888.5,1888.4,2.08080264]
[1742132541905,3.08712,1888.5,1888.4,1.02173264]
[1742132542112,3.08712,1888.5,1888.4,0.70810098]
[1742132542317,6.29492,1888.5,1888.4,0.70810098]
[1742132542919,6.29492,1888.5,1888.4,0.00794428]
[1742132549322,1.05924,1888.1,1888.0,4.26706]
[1742132549518,1.05924,1888.1,1888.0,4.88489054]
[1742132550022,1.05924,1888.1,1888.0,4.5714]
[1742132550226,1.05924,1888.1,1887.7,0.40389137]
[1742132550227,1.05938,1887.9,1887.7,3.2078]
[1742132550426,1.05938,1887.9,1887.8,1.64186517]
[1742132551028,1.05935,1887.9,1887.8,4.52045268]
[1742132551737,1.05935,1887.9,1887.8,4.20708751]
[1742132551922,1.05935,1887.9,1887.8,4.52052865]
[1742132552421,0.6811,1888.1,1887.8,3.46115865]
[1742132552623,1.05935,1888.0,1887.9,2.70127114]
[1742132553323,1.05935,1888.0,1887.9,3.40097018]
[1742132554720,1.05935,1888.0,1887.9,2.34164018]
[1742132555127,1.05935,1888.0,1887.9,1.01314018]
[1742132555327,1.05935,1888.0,1887.9,0.69969904]
[1742132556427,1.05935,1887.9,1887.8,1.3448]
[1742132556633,1.72065,1887.9,1887.8,1.3448]
[1742132556930,1.72065,1887.9,1887.8,2.045561]
[1742132557625,1.72065,1887.9,1887.8,0.700761]
[1742132561536,8.49245,1887.9,1887.8,0.08252284]
[1742132561731,8.49245,1887.9,1887.6,0.00794428]
[1742132561732,1.05946,1887.7,1887.6,0.00794428]
[1742132561935,4.26726,1887.7,1887.6,0.00794428]
[1742132562337,4.93946,1887.7,1887.6,0.00794428]
[1742132563837,4.93946,1887.7,1887.6,1.06746428]
[1742132564142,4.26726,1887.7,1887.6,2.03604428]
[1742132564336,4.26726,1887.7,1887.6,0.00794428]
[1742132564640,4.26726,1887.7,1887.6,1.06746428]
[1742132564841,4.26726,1887.7,1887.6,0.00794428]
[1742132565238,1.05946,1887.7,1887.6,0.00794428]
[1742132565647,4.26726,1887.7,1887.6,0.00794428]
[1742132566445,7.83126,1887.7,1887.6,0.00794428]
[1742132567742,13.65726,1887.7,1887.6,0.00794428]
[1742132567935,16.15726,1887.7,1887.6,0.00794428]
[1742132568638,13.65726,1887.7,1887.6,0.00794428]
[1742132568843,16.15726,1887.7,1887.6,0.00794428]
[1742132569443,1.0598,1887.1,1887.0,1.3791]
[1742132570538,1.7474,1887.1,1887.0,1.3791]
[1742132570740,1.05986,1887.0,1886.9,1.3994]
[1742132570947,2.45686,1887.0,1886.9,2.7785]
[1742132571645,2.45686,1887.0,1886.9,2.0566]
[1742132571851,1.05991,1886.9,1886.8,3.2078]
[1742132572043,2.46631,1886.9,1886.8,3.2078]
[1742132572252,2.46631,1886.9,1886.8,1.4262]
[1742132572442,2.46631,1886.9,1886.8,2.1413]
[1742132576851,2.46631,1886.9,1886.8,1.4262]
[1742132577154,1.06003,1886.7,1886.6,0.6783]
[1742132577455,1.06003,1886.7,1886.6,1.411]
[1742132578052,2.46013,1886.7,1886.6,1.411]
[1742132578252,1.06008,1886.6,1886.5,2.7825]
[1742132578455,2.46018,1886.6,1886.5,2.7825]
[1742132579448,1.06014,1886.5,1886.4,3.2078]
[1742132579649,3.13854,1886.5,1886.4,3.2078]
[1742132580055,3.13854,1886.5,1886.4,4.6056]
[1742132580259,1.06019,1886.4,1886.3,0.7029]
[1742132580555,9.7483,1886.7,1886.4,1.06014]
[1742132580749,1.06004,1886.7,1886.6,1.06008]
[1742132581150,1.06012,1886.6,1886.5,1.06012]
[1742132581559,1.06012,1886.6,1886.5,2.39642]
[1742132581859,1.06007,1886.7,1886.6,1.06006]
[1742132582057,2.39837,1886.7,1886.6,1.4073]
[1742132582559,2.39837,1886.7,1886.6,2.7436]
[1742132582759,2.39837,1886.7,1886.6,2.0257]
[1742132583058,2.39837,1886.7,1886.4,3.9257]
[1742132583059,1.06014,1886.5,1886.4,3.9257]
[1742132583255,1.06014,1886.5,1886.4,4.6257]
[1742132584455,1.06014,1886.5,1886.4,5.68589]
[1742132584859,1.06014,1886.5,1886.4,4.6257]
[1742132585252,2.39843,1886.6,1886.5,1.06014]
[1742132585461,2.39843,1886.6,1886.5,2.47714]
[1742132585662,2.39843,1886.6,1886.5,1.417]
[1742132586158,2.39838,1886.6,1886.5,2.47714]
[1742132587159,2.39838,1886.6,1886.5,1.417]
[1742132587864,1.06014,1886.5,1886.4,4.6257]
[1742132588163,1.434,1886.9,1886.6,1.06006]
[1742132588365,1.434,1886.9,1886.4,6.55826]
[1742132588568,1.06005,1886.7,1886.6,1.06004]
[1742132589158,1.06011,1886.6,1886.5,1.0601]
[1742132589359,1.06014,1886.5,1886.4,4.96798]
[1742132589763,1.06011,1886.6,1886.5,1.06011]
[1742132589963,1.06014,1886.5,1886.4,4.96794]
[1742132590158,1.06014,1886.5,1886.4,4.96795]
[1742132590565,1.06014,1886.5,1886.4,5.28143642]
[1742132590967,1.06014,1886.5,1886.4,2.07364156]
[1742132591664,1.06014,1886.5,1886.4,2.0738177]
[1742132592072,1.06014,1886.5,1886.4,3.88125057]
[1742132593763,3.2078,1886.8,1886.4,6.02890057]
[1742132593966,1.0601,1886.6,1886.5,1.06009]
[1742132594161,1.06006,1886.7,1886.6,1.06004]
[1742132594563,1.06006,1886.7,1886.6,1.75520649]
[1742132595071,1.06003,1886.7,1886.6,1.75520649]
[1742132595265,1.06003,1886.7,1886.6,1.00918221]
[1742132595465,1.06003,1886.7,1886.6,1.75524649]
[1742132596465,1.06003,1886.7,1886.6,1.00927271]
[1742132596672,1.06003,1886.7,1886.6,2.0693841]
[1742132596867,1.06003,1886.7,1886.6,2.06939066]
[1742132597174,1.06003,1886.7,1886.6,1.75524649]
[1742132597468,1.06003,1886.7,1886.6,2.06956774]
[1742132597675,1.06003,1886.7,1886.6,1.00948774]
[1742132598373,1.06003,1886.7,1886.6,2.06956774]
[1742132598577,1.06003,1886.7,1886.6,1.00948774]
[1742132598770,1.06003,1886.7,1886.6,2.12447819]
[1742132599377,1.06003,1886.7,1886.6,3.18455819]
[1742132599862,1.06003,1886.7,1886.6,2.12478594]
[1742132600068,1.06003,1886.7,1886.6,1.81015694]
[1742132600871,2.65029,1886.6,1886.2,3.2078]
[1742132601079,1.06019,1886.4,1886.3,3.41690038]
[1742132601573,1.06019,1886.4,1886.3,2.12839405]
[1742132601767,1.06019,1886.4,1886.3,2.12838696]
[1742132601973,1.06019,1886.4,1886.3,3.46468696]
[1742132602170,1.06019,1886.4,1886.3,1.01231701]
[1742132602368,1.06019,1886.4,1886.3,0.69754372]
[1742132603775,1.06067,1885.6,1885.5,1.06069]
[1742132603973,3.2078,1886.0,1885.5,1.01501497]
[1742132604174,1.06051,1885.9,1885.6,3.52271497]
[1742132604375,1.06845428,1885.9,1885.8,1.06053]
[1742132604675,0.00794428,1885.9,1885.6,4.31604869]
[1742132604872,1.06053,1885.8,1885.7,1.37513201]
[1742132605079,1.42984428,1885.9,1885.7,1.67718201]
[1742132605266,4.26833,1885.8,1885.7,1.10824869]
[1742132605577,1.06053,1885.8,1885.7,1.42269273]
[1742132605779,1.06053,1885.8,1885.7,1.42264469]
[1742132605981,1.06053,1885.8,1885.7,1.676996]
[1742132606170,1.06053,1885.8,1885.7,0.314396]
[1742132606373,1.0607,1885.5,1885.4,3.2078]
[1742132606672,1.0607,1885.5,1885.4,4.58290833]
[1742132607277,1.0607,1885.5,1885.4,5.68916448]
[1742132607979,1.0607,1885.5,1885.4,4.62840448]
[1742132608177,1.0607,1885.5,1885.4,1.42060448]
[1742132608376,1.0607,1885.5,1885.4,1.10625615]
[1742132608577,1.0607,1885.5,1885.4,1.42020589]
[1742132608777,1.06076,1885.4,1885.3,1.7442]
[1742132609081,1.06074,1885.5,1885.4,1.06076]
[1742132609782,1.4212,1885.6,1885.3,3.8912]
[1742132609980,1.06072,1885.5,1885.4,1.06073]
[1742132610182,1.06072,1885.5,1885.3,4.95197]
[1742132610378,1.4212,1885.4,1885.3,4.95197]
[1742132610572,1.4212,1885.4,1885.3,5.26560134]
[1742132610774,1.4212,1885.4,1885.3,6.05577193]
[1742132610974,1.4212,1885.4,1885.3,6.36940205]
[1742132611482,2.48196,1885.4,1885.3,6.36940205]
[1742132611785,1.4212,1885.4,1885.3,2.84801193]
[1742132612080,1.4212,1885.4,1885.3,1.78720193]
[1742132612081,2.48196,1885.4,1885.3,1.78720193]
[1742132612285,2.48196,1885.4,1885.3,0.6834]
[1742132613183,1.4212,1885.4,1884.9,3.2078]
[1742132613489,4.6119,1885.3,1885.0,1.3878]
[1742132613684,1.4041,1885.2,1885.0,1.3878]
[1742132613880,1.4041,1885.2,1885.0,2.44874]
[1742132614082,2.46499,1885.2,1885.0,2.44876]
[1742132614289,2.465,1885.2,1885.0,2.44876]
[1742132614585,1.3326,1885.1,1885.0,2.44876]
[1742132614779,1.3326,1885.1,1885.0,1.3878]
[1742132615176,2.39353,1885.1,1885.0,1.3878]
[1742132615381,1.3326,1885.1,1884.7,3.2078]
[1742132615587,1.06109,1884.9,1884.8,0.6866]
[1742132615979,1.72449,1884.9,1884.8,0.6866]
[1742132616180,4.6487,1884.9,1884.4,4.26907]
[1742132616387,1.06115,1884.7,1884.6,0.6866]
[1742132617386,1.06138,1884.3,1884.2,4.66821052]
[1742132617595,1.3311,1884.7,1884.2,5.32741052]
[1742132617893,2.3924,1884.5,1884.3,1.06137]
[1742132618183,2.3924,1884.5,1884.2,7.433]
[1742132618184,1.3311,1884.5,1884.2,3.867]
[1742132618387,1.3311,1884.4,1884.2,3.867]
[1742132618581,1.3311,1884.4,1884.3,1.06138]
[1742132618777,1.3311,1884.4,1884.3,0.6957]
[1742132618989,1.3311,1884.4,1884.3,1.75708]
[1742132619385,2.39242,1884.4,1884.3,0.6957]
[1742132621597,1.06138,1884.3,1884.2,0.6592]
[1742132621902,1.06134,1884.4,1884.2,3.16011]
[1742132622100,1.3339,1884.4,1884.3,1.06138]
[1742132622294,1.06139,1884.3,1884.1,1.06145]
[1742132622600,0.7008,1884.5,1884.1,1.4395]
[1742132622794,2.39528,1884.3,1884.2,0.7262]
[1742132622995,2.39528,1884.3,1884.2,2.1657]
[1742132623602,1.3339,1884.3,1884.2,3.22713]
[1742132623800,1.76211,1884.5,1884.2,3.22713]
[1742132623801,1.06133,1884.4,1884.2,5.3735]
[1742132624002,2.42642,1884.4,1884.3,1.3936]
[1742132625093,1.3651,1884.4,1884.3,1.3936]
[1742132625300,9.0338,1884.6,1884.3,1.3936]
[1742132625502,2.42636,1884.5,1884.4,0.6982]
[1742132625704,2.42636,1884.5,1884.4,2.0918]
[1742132626205,1.06906428,1884.8,1884.6,1.06119]
[1742132626405,2.48466428,1884.8,1884.7,2.077]
[1742132628592,2.48466428,1884.8,1884.7,3.13815]
[1742132628800,2.48466428,1884.8,1884.7,2.077]
[1742132628995,2.48466428,1884.8,1884.7,3.13815]
[1742132629204,0.00794428,1884.8,1884.7,3.13815]
[1742132630798,0.00794428,1884.8,1884.7,3.82617255]
[1742132631003,1.4543,1885.1,1884.7,5.57779175]
[1742132631308,1.06109,1884.8,1884.7,4.25502255]
[1742132631601,1.06109,1884.8,1884.7,5.65182255]
[1742132631903,1.06109,1884.8,1884.7,4.9638]
[1742132632298,1.06109,1884.8,1884.7,1.3968]
[1742132634007,1.06115,1884.7,1884.6,3.93194428]
[1742132634207,2.39525,1884.7,1884.6,1.41366895]
[1742132634608,2.39525,1884.7,1884.6,2.84216895]
[1742132634905,2.39525,1884.7,1884.6,0.69746895]
[1742132635299,5.60305,1884.7,1884.6,0.00794428]
[1742132636299,12.8679,1884.7,1884.1,3.9242]
[1742132636504,12.8679,1884.7,1884.0,0.6872]
[1742132636505,1.06149,1884.1,1884.0,0.6872]
[1742132636699,5.86117,1884.4,1883.8,5.7128]